bitfinex/quotes_BTCUSD_20251113
["timestamp","ask_amount","ask_price","bid_price","bid_amount"]
[1763018446783,0.00993966,103860.0,103850.0,1.24022114]
[1763018449724,0.06211966,103860.0,103850.0,0.57900419]
[1763018449961,0.06211966,103860.0,103850.0,1.24022114]
[1763018450183,0.06211966,103860.0,103850.0,1.01981549]
[1763018451052,0.06211966,103860.0,103850.0,1.24022114]
[1763018452570,0.06211966,103860.0,103850.0,1.01981549]
[1763018452741,0.06211966,103860.0,103850.0,0.7459911]
[1763018453155,0.06211966,103860.0,103850.0,0.96639675]
[1763018455913,0.06211966,103860.0,103850.0,1.01639675]
[1763018456520,0.69549787,103860.0,103850.0,0.06]
[1763018456722,0.69549787,103860.0,103850.0,0.05]
[1763018458005,0.69549787,103860.0,103850.0,0.051]
[1763018458886,0.69549787,103860.0,103850.0,0.052]
[1763018460339,0.91590352,103860.0,103850.0,0.052]
[1763018460574,1.57712047,103860.0,103850.0,0.002]
[1763018460797,0.19262255,103830.0,103820.0,0.0789467]
[1763018461043,0.20848255,103830.0,103820.0,0.0789467]
[1763018461264,0.23208255,103830.0,103820.0,0.2026411]
[1763018461704,0.03946,103830.0,103820.0,0.2026411]
[1763018461927,0.03946,103830.0,103820.0,0.42304675]
[1763018462152,0.03946,103830.0,103820.0,0.2715878]
[1763018462402,0.03946,103830.0,103820.0,0.42304675]
[1763018462581,0.03946,103830.0,103820.0,0.2026411]
[1763018462837,0.03946,103830.0,103820.0,0.42304675]
[1763018463265,0.03946,103830.0,103820.0,0.6434524]
[1763018463689,0.03946,103830.0,103820.0,0.42304675]
[1763018463896,0.03946,103830.0,103820.0,0.49199345]
[1763018464219,0.03946,103830.0,103820.0,0.42304675]
[1763018464916,0.23208255,103830.0,103820.0,0.01]
[1763018465119,0.23208255,103830.0,103820.0,0.1926411]
[1763018465567,0.23208255,103830.0,103810.0,0.50164571]
[1763018465773,0.0398,103820.0,103810.0,0.60424006]
[1763018466336,0.0398,103820.0,103810.0,0.82464571]
[1763018466577,0.0398,103820.0,103810.0,0.59424006]
[1763018467391,0.0418,103820.0,103810.0,0.59424006]
[1763018467618,0.0418,103820.0,103810.0,0.81464571]
[1763018467825,0.0398,103820.0,103810.0,0.81564571]
[1763018468171,0.0398,103820.0,103810.0,0.81464571]
[1763018468374,0.0398,103820.0,103810.0,0.83389746]
[1763018468707,0.0398,103820.0,103810.0,1.04505136]
[1763018469311,0.0398,103820.0,103810.0,0.82464571]
[1763018469517,0.2324411,103820.0,103810.0,0.60424006]
[1763018469693,0.2324411,103820.0,103810.0,0.34263454]
[1763018469897,0.2324411,103820.0,103810.0,0.2122942]
[1763018470215,0.2324411,103820.0,103810.0,0.43269985]
[1763018470427,0.2324411,103820.0,103810.0,0.2122942]
[1763018470635,0.2324411,103820.0,103810.0,0.01963454]
[1763018470828,0.2324411,103820.0,103810.0,0.20266122]
[1763018470993,0.2324411,103820.0,103810.0,0.25266122]
[1763018471473,0.0398,103820.0,103810.0,0.25266122]
[1763018471675,0.2324411,103820.0,103810.0,0.25266122]
[1763018472816,0.2324411,103820.0,103810.0,0.06000156]
[1763018473028,0.2324411,103820.0,103810.0,0.05000156]
[1763018473259,0.49500675,103820.0,103810.0,0.05000156]
[1763018473475,0.7154124,103820.0,103810.0,0.05000156]
[1763018473925,0.2746011,103820.0,103810.0,0.05000156]
[1763018474074,0.49500675,103820.0,103810.0,0.24266122]
[1763018474276,0.49500675,103820.0,103810.0,0.05000156]
[1763018476161,1.36173174,103820.0,103810.0,0.05000156]
[1763018476365,1.36173174,103820.0,103810.0,1.56e-06]
[1763018476753,1.27092805,103820.0,103810.0,1.56e-06]
[1763018477202,0.05191,103820.0,103810.0,0.19266122]
[1763018477414,0.2877111,103820.0,103810.0,1.56e-06]
[1763018477638,0.2877111,103820.0,103810.0,0.19266122]
[1763018477858,0.2867111,103820.0,103810.0,0.19266122]
[1763018478062,0.09407,103820.0,103810.0,0.19266122]
[1763018478492,0.05191,103820.0,103810.0,0.19266122]
[1763018478725,0.09407,103820.0,103810.0,0.19266122]
[1763018478931,0.50811675,103820.0,103810.0,1.56e-06]
[1763018479136,0.50711675,103820.0,103810.0,1.56e-06]
[1763018479342,0.50711675,103820.0,103810.0,0.19266122]
[1763018480256,0.05191,103820.0,103810.0,0.87312992]
[1763018480483,0.03552,103830.0,103820.0,0.1926411]
[1763018480719,0.05166,103830.0,103820.0,0.2448011]
[1763018480942,0.05166,103830.0,103820.0,0.53889738]
[1763018481407,0.05166,103830.0,103820.0,0.5678011]
[1763018481626,0.05166,103830.0,103820.0,0.86189738]
[1763018482086,0.53838082,103830.0,103810.0,0.20266122]
[1763018482285,0.03955,103820.0,103810.0,0.20266122]
[1763018482697,0.03955,103820.0,103810.0,0.4967575]
[1763018486552,0.03955,103820.0,103810.0,0.5389175]
[1763018486758,0.03552,103830.0,103820.0,0.1926411]
[1763018486961,0.05166,103830.0,103820.0,0.79083366]
[1763018487137,0.05166,103830.0,103820.0,0.49673738]
[1763018488160,0.05166,103830.0,103820.0,0.49773738]
[1763018488486,0.05166,103830.0,103820.0,0.49873738]
[1763018489285,0.05166,103830.0,103820.0,0.2046411]
[1763018489493,0.05166,103830.0,103820.0,0.49873738]
[1763018490726,0.05166,103830.0,103820.0,0.79283366]
[1763018490924,0.05166,103830.0,103820.0,0.49873738]
[1763018492078,0.05166,103830.0,103820.0,0.79283366]
[1763018493055,0.05166,103830.0,103820.0,0.49873738]
[1763018496446,0.05166,103830.0,103820.0,0.2046411]
[1763018496615,0.24428255,103830.0,103820.0,0.2046411]
[1763018497352,0.24428255,103830.0,103820.0,0.002]
[1763018498516,0.24428255,103830.0,103820.0,0.1946411]
[1763018498746,0.05166,103830.0,103820.0,0.1946411]
[1763018499355,0.24428255,103830.0,103820.0,0.1946411]
[1763018500563,0.05166,103830.0,103820.0,0.1946411]
[1763018501710,0.05166,103830.0,103820.0,0.78283366]
[1763018501929,0.05166,103830.0,103820.0,0.80208541]
[1763018502555,0.05166,103830.0,103820.0,1.16724541]
[1763018503204,0.05166,103830.0,103820.0,1.21066415]
[1763018504200,0.03584,103840.0,103830.0,0.19262255]
[1763018504352,0.01211,103850.0,103830.0,0.19262255]
[1763018504353,0.03584,103850.0,103840.0,0.192604]
[1763018504555,0.05116,103850.0,103840.0,0.83295656]
[1763018506583,0.05116,103850.0,103840.0,0.83395656]
[1763018506789,0.05116,103850.0,103840.0,0.83495656]
[1763018507014,0.05116,103850.0,103840.0,0.66668212]
[1763018509092,0.05116,103850.0,103840.0,0.98968212]
[1763018509736,0.05116,103850.0,103840.0,0.66668212]
[1763018509916,0.05116,103850.0,103840.0,0.98968212]
[1763018511732,0.051095,103850.0,103840.0,0.98968212]
[1763018514262,0.05114154,103850.0,103840.0,0.98968212]
[1763018517939,0.01209154,103850.0,103840.0,1.45301898]
[1763018518691,4.654e-05,103850.0,103840.0,1.45301898]
[1763018518903,4.654e-05,103850.0,103840.0,1.46301898]
[1763018519534,4.654e-05,103850.0,103840.0,1.46101898]
[1763018519924,0.00104654,103850.0,103840.0,1.46101898]
[1763018521201,1e-08,103850.0,103840.0,1.46101898]
[1763018521384,1e-08,103850.0,103840.0,1.47604109]
[1763018521796,0.03607,103880.0,103870.0,0.52554837]
[1763018522061,0.01225661,103880.0,103870.0,0.99888523]
[1763018522783,0.01325661,103880.0,103870.0,0.99888523]
[1763018523795,0.00104661,103880.0,103870.0,0.98888523]
[1763018524021,0.00104661,103880.0,103870.0,1.41880335]
[1763018524566,0.00104661,103880.0,103870.0,0.99888523]
[1763018524920,0.00104661,103880.0,103870.0,1.41880335]
[1763018525477,1e-08,103880.0,103870.0,1.41880335]
[1763018525636,0.01234,103900.0,103890.0,0.57893005]
[1763018525843,0.0123866,103900.0,103890.0,0.99884817]
[1763018526037,0.0278966,103900.0,103890.0,0.99884817]
[1763018526990,0.0278966,103900.0,103890.0,0.99984817]
[1763018527337,0.0278966,103900.0,103890.0,1.00084817]
[1763018527932,0.0123866,103900.0,103890.0,1.00084817]
[1763018528877,0.0123866,103900.0,103890.0,0.87457215]
[1763018529287,0.0278966,103900.0,103890.0,0.58093005]
[1763018529483,0.0123866,103900.0,103890.0,0.87457215]
[1763018529836,4.66e-05,103900.0,103890.0,1.16821425]
[1763018530761,4.66e-05,103900.0,103890.0,1.16721425]
[1763018531675,4.66e-05,103900.0,103890.0,1.16621425]
[1763018532093,0.0010466,103900.0,103890.0,1.16621425]
[1763018532306,0.00257645,103910.0,103900.0,0.19249278]
[1763018532519,0.00257645,103910.0,103900.0,0.50613488]
[1763018532955,0.00257645,103910.0,103900.0,0.79977698]
[1763018533961,0.00357645,103910.0,103900.0,0.79977698]
[1763018534357,0.00357645,103910.0,103900.0,0.84189698]
[1763018535666,0.05561645,103910.0,103900.0,0.20249278]
[1763018535876,0.05561645,103910.0,103900.0,0.81913488]
[1763018536085,0.05561645,103910.0,103900.0,0.53825488]
[1763018536290,0.2480907,103910.0,103900.0,0.01]
[1763018536498,0.2480907,103910.0,103900.0,0.19249278]
[1763018537948,0.2480907,103910.0,103900.0,0.19349278]
[1763018538155,0.2470907,103910.0,103900.0,0.19349278]
[1763018538363,0.66667493,103910.0,103900.0,0.001]
[1763018538573,0.2470907,103910.0,103900.0,0.002]
[1763018538987,0.2892107,103910.0,103900.0,0.002]
[1763018539202,0.2892107,103910.0,103900.0,0.001]
[1763018539614,0.2892107,103910.0,103900.0,0.002]
[1763018540461,0.2892107,103910.0,103900.0,0.19449278]
[1763018540588,0.2892107,103910.0,103900.0,0.002]
[1763018541457,0.09673645,103910.0,103900.0,0.20449278]
[1763018541661,0.2892107,103910.0,103900.0,0.20449278]
[1763018543758,0.2470907,103910.0,103900.0,0.20449278]
[1763018544134,0.2470907,103910.0,103900.0,0.012]
[1763018544372,0.26502053,103910.0,103900.0,0.012]
[1763018545107,0.26502053,103910.0,103900.0,0.20449278]
[1763018545517,0.26502053,103910.0,103900.0,0.012]
[1763018547280,0.26503734,103910.0,103900.0,0.012]
[1763018547938,0.5153598,103910.0,103900.0,0.002]
[1763018548780,0.19251131,103890.0,103880.0,0.21215615]
[1763018548984,0.22034131,103890.0,103880.0,0.21220275]
[1763018549129,0.24455131,103890.0,103880.0,0.21220275]
[1763018549547,0.07001486,103890.0,103880.0,0.46252521]
[1763018550167,0.07001486,103890.0,103880.0,0.21220275]
[1763018550563,0.07001486,103890.0,103880.0,0.71284767]
[1763018550782,0.02783,103890.0,103880.0,0.71284767]
[1763018550987,0.05268,103890.0,103880.0,0.21220275]
[1763018551225,0.05268,103890.0,103880.0,0.71284767]
[1763018551989,0.02783,103890.0,103880.0,0.71284767]
[1763018552193,0.01232,103890.0,103880.0,1.08926641]
[1763018552441,0.01232,103890.0,103880.0,0.58862149]
[1763018552442,0.05295,103890.0,103880.0,0.58862149]
[1763018552643,0.05295,103890.0,103880.0,1.08926641]
[1763018553923,0.0281,103890.0,103880.0,1.08926641]
[1763018555731,0.0281,103890.0,103880.0,0.58862149]
[1763018555930,0.0281,103890.0,103880.0,1.08926641]
[1763018556152,0.0281,103890.0,103880.0,1.14045125]
[1763018556429,0.01232,103890.0,103880.0,1.14045125]
[1763018556709,0.0281,103890.0,103880.0,1.14045125]
[1763018556955,0.05295,103890.0,103880.0,1.14045125]
[1763018558240,0.01232,103890.0,103880.0,1.14045125]
[1763018559592,0.0281,103890.0,103880.0,1.14045125]
[1763018560863,0.0281,103890.0,103880.0,0.89012879]
[1763018561098,0.01232,103890.0,103880.0,1.96138007]
[1763018561240,0.0362,103900.0,103890.0,0.20251131]
[1763018561418,0.0362,103900.0,103890.0,0.86329818]
[1763018561620,0.05198,103900.0,103890.0,0.86329818]
[1763018562303,0.05198,103900.0,103890.0,0.86429818]
[1763018562509,0.05198,103900.0,103890.0,0.86529818]
[1763018566717,0.05198,103900.0,103890.0,0.20451131]
[1763018566926,0.05198,103900.0,103890.0,0.64503589]
[1763018568320,0.24447278,103900.0,103890.0,0.002]
[1763018568525,0.2625141,103900.0,103890.0,0.4147736]
[1763018569558,0.24447278,103900.0,103890.0,0.4147736]
[1763018570353,0.24447278,103900.0,103890.0,0.002]
[1763018570771,0.24447278,103900.0,103890.0,0.19451131]
[1763018570974,0.24447278,103900.0,103890.0,0.4147736]
[1763018572213,0.05198,103900.0,103890.0,0.4147736]
[1763018572717,0.24447278,103900.0,103890.0,0.4147736]
[1763018573027,0.28655278,103900.0,103890.0,0.4147736]
[1763018573499,0.50681507,103900.0,103890.0,0.002]
[1763018573674,0.28655278,103900.0,103890.0,0.002]
[1763018575038,0.09406,103900.0,103890.0,0.19451131]
[1763018575241,0.09406,103900.0,103890.0,0.4247736]
[1763018575355,0.28655278,103900.0,103890.0,0.64503589]
[1763018575766,0.05198,103900.0,103890.0,1.09481222]
[1763018576006,0.05198,103900.0,103890.0,0.87454993]
[1763018577789,0.05198,103900.0,103890.0,0.91796867]
[1763018577993,0.05198,103900.0,103890.0,0.87454993]
[1763018578346,0.05198,103900.0,103890.0,0.65428764]
[1763018578576,0.24447278,103900.0,103890.0,0.63503589]
[1763018578797,0.24447278,103900.0,103890.0,0.45252458]
[1763018579121,0.24447278,103900.0,103890.0,0.4247736]
[1763018579467,0.24447278,103900.0,103890.0,0.002]
[1763018579878,0.24447278,103900.0,103890.0,0.19451131]
[1763018580357,0.05198,103900.0,103890.0,0.4147736]
[1763018580535,0.05198,103900.0,103890.0,0.64503589]
[1763018580904,0.05198,103900.0,103890.0,0.86529818]
[1763018581094,0.05198,103900.0,103890.0,0.4247736]
[1763018581318,0.05198,103900.0,103890.0,0.64503589]
[1763018582806,0.05198,103900.0,103890.0,0.86529818]
[1763018583116,0.02713,103900.0,103890.0,0.91871692]
[1763018584152,0.03768645,103910.0,103900.0,0.19249278]
[1763018584315,0.03768645,103910.0,103900.0,0.86327965]
[1763018584520,0.05363645,103910.0,103900.0,0.86327965]
[1763018585516,0.03084645,103910.0,103900.0,0.91669839]
[1763018585719,0.03084645,103910.0,103900.0,1.23969839]
[1763018586128,0.05537645,103910.0,103900.0,1.23969839]
[1763018587161,0.05537645,103910.0,103900.0,1.24069839]
[1763018587401,0.03084645,103910.0,103900.0,1.24169839]
[1763018590344,0.05537645,103910.0,103900.0,1.24169839]
[1763018590754,0.03084645,103910.0,103900.0,1.24169839]
[1763018591171,0.01489645,103910.0,103900.0,1.24169839]
[1763018591713,0.03084645,103910.0,103900.0,1.24169839]
[1763018591917,0.05537645,103910.0,103900.0,1.24169839]
[1763018594297,0.03084645,103910.0,103900.0,1.24169839]
[1763018594511,0.01489645,103910.0,103900.0,1.24169839]
[1763018594928,0.00257645,103910.0,103900.0,1.89248526]
[1763018595132,0.01414645,103910.0,103900.0,1.90248526]
[1763018595546,0.00257645,103910.0,103900.0,1.90248526]
[1763018595737,0.00257645,103910.0,103900.0,1.90148526]
[1763018596086,0.01414645,103910.0,103900.0,0.57891152]
[1763018596291,0.01414645,103910.0,103900.0,1.90048526]
[1763018597107,0.00257645,103910.0,103900.0,1.90048526]
[1763018597654,0.05462645,103910.0,103900.0,0.57891152]
[1763018597865,0.05462645,103910.0,103900.0,1.22969839]
[1763018598192,0.05462645,103910.0,103900.0,0.90669839]
[1763018598365,0.05462645,103910.0,103900.0,1.22969839]
[1763018599362,0.05462645,103910.0,103900.0,1.22712586]
[1763018601603,0.05462645,103910.0,103900.0,0.90412586]
[1763018601967,0.05462645,103910.0,103900.0,0.68386357]
[1763018602167,0.05462645,103910.0,103900.0,0.64044483]
[1763018602412,0.2471007,103910.0,103900.0,0.01]
[1763018602667,0.2471007,103910.0,103890.0,0.42277337]
[1763018602869,0.24454278,103900.0,103890.0,0.01]
[1763018603222,0.24454278,103900.0,103880.0,0.21220248]
[1763018603426,0.05205,103890.0,103880.0,0.53520248]
[1763018603825,0.05205,103890.0,103880.0,0.82898788]
[1763018604703,0.05205,103890.0,103880.0,0.21220293]
[1763018604704,0.24456131,103890.0,103880.0,0.21220293]
[1763018605526,0.53834671,103890.0,103880.0,4.66e-05]
[1763018605711,0.58042671,103890.0,103880.0,4.66e-05]
[1763018606057,0.58042671,103890.0,103880.0,0.0010466]
[1763018606263,0.09413,103890.0,103880.0,0.19357644]
[1763018606472,0.28664131,103890.0,103880.0,0.0110466]
[1763018606684,0.28664131,103890.0,103880.0,0.0010466]
[1763018607115,0.28664131,103890.0,103880.0,0.19357644]
[1763018607554,0.28664131,103890.0,103880.0,4.66e-05]
[1763018609216,0.28664131,103890.0,103880.0,0.19257644]
[1763018610481,0.28664131,103890.0,103880.0,4.66e-05]
[1763018610773,0.28664131,103890.0,103880.0,0.19257644]
[1763018611448,0.09413,103890.0,103880.0,0.19257644]
[1763018611661,0.09413,103890.0,103880.0,0.20257644]
[1763018612110,0.28664131,103890.0,103880.0,0.20257644]
[1763018612532,0.09413,103890.0,103880.0,0.20257644]
[1763018613015,0.28664131,103890.0,103880.0,0.49636184]
[1763018613212,0.09413,103890.0,103880.0,0.49636184]
[1763018613427,0.28664131,103890.0,103880.0,0.20257644]
[1763018613646,0.28664131,103890.0,103880.0,0.49636184]
[1763018614377,0.29664131,103890.0,103880.0,0.17538252]
[1763018614585,0.29664131,103890.0,103880.0,0.01]
[1763018614797,0.29664131,103890.0,103880.0,0.20252984]
[1763018615693,0.25456131,103890.0,103880.0,0.20252984]
[1763018616306,0.06205,103890.0,103880.0,0.20252984]
[1763018616508,0.06205,103890.0,103880.0,0.79010064]
[1763018616868,0.06205,103890.0,103880.0,0.49631524]
[1763018617252,0.06205,103890.0,103880.0,0.79010064]
[1763018617476,0.06205,103890.0,103880.0,0.79110064]
[1763018617691,0.06205,103890.0,103880.0,0.79210064]
[1763018620216,0.03752,103890.0,103880.0,0.84551938]
[1763018620823,0.03752,103890.0,103880.0,1.16851938]
[1763018621202,0.02157,103890.0,103880.0,1.23746608]
[1763018621736,0.03706,103890.0,103880.0,1.23746608]
[1763018622582,0.01,103890.0,103880.0,1.23746608]
[1763018622786,0.03839645,103910.0,103900.0,0.20249278]
[1763018622964,0.05388645,103910.0,103900.0,0.79006358]
[1763018623270,0.01414645,103910.0,103900.0,0.83348232]
[1763018623506,0.03055645,103910.0,103900.0,0.84348232]
[1763018623711,0.03055645,103910.0,103900.0,0.25591152]
[1763018623913,0.03055645,103910.0,103900.0,0.84348232]
[1763018624114,0.01506645,103910.0,103900.0,0.84348232]
[1763018624317,0.00257645,103910.0,103900.0,0.84348232]
[1763018625557,0.03055645,103910.0,103900.0,0.84348232]
[1763018628260,0.00257645,103910.0,103900.0,1.16648232]
[1763018628469,0.00257645,103910.0,103900.0,1.46026772]
[1763018628672,0.00257645,103910.0,103900.0,1.57507591]
[1763018628953,0.00257645,103910.0,103900.0,1.59706615]
[1763018629196,1e-08,103910.0,103900.0,1.57507591]
[1763018629413,1e-08,103910.0,103900.0,1.59706615]
[1763018629621,1e-08,103910.0,103900.0,1.5161292]
[1763018629822,1e-08,103910.0,103900.0,1.60271844]
[1763018630194,1e-08,103910.0,103900.0,1.63470867]
[1763018630404,1e-08,103910.0,103900.0,1.61271843]
[1763018630769,1e-08,103910.0,103900.0,2.01271843]
[1763018631402,1e-08,103910.0,103900.0,2.15921843]
[1763018632281,1e-08,103910.0,103900.0,2.09932205]
[1763018633339,1e-08,103910.0,103900.0,2.06140153]
[1763018633566,1e-08,103910.0,103900.0,2.01271843]
[1763018635252,1e-08,103910.0,103900.0,1.92612919]
[1763018635578,1e-08,103910.0,103900.0,1.98451378]
[1763018635789,1e-08,103910.0,103900.0,1.54109504]
[1763018635957,0.03684377,103930.0,103920.0,0.25587447]
[1763018636157,0.05233377,103930.0,103920.0,0.84344527]
[1763018636361,0.05281607,103930.0,103920.0,0.84344527]
[1763018636717,0.05281607,103930.0,103920.0,0.8723353]
[1763018637123,0.01354213,103930.0,103920.0,0.9143753]
[1763018637335,0.00105213,103930.0,103920.0,0.9143753]
[1763018637772,0.00105213,103930.0,103920.0,0.93230488]
[1763018638184,0.00105213,103930.0,103920.0,1.22609028]
[1763018638614,0.00105213,103930.0,103920.0,1.54909028]
[1763018639230,0.0002,103940.0,103930.0,0.80000801]
[1763018639424,0.00033974,103940.0,103930.0,0.80000801]
[1763018640185,0.00033974,103940.0,103930.0,0.82889445]
[1763018641888,0.00033974,103940.0,103930.0,0.87231319]
[1763018642569,0.0002,103950.0,103940.0,0.8292041]
[1763018642774,0.0002,103950.0,103940.0,0.5354187]
[1763018642999,0.01679,103950.0,103940.0,1.14210901]
[1763018643585,0.0002,103950.0,103940.0,1.14210901]
[1763018645075,0.0002,103950.0,103940.0,1.47931315]
[1763018646449,0.0002,103950.0,103940.0,1.50819478]
[1763018648256,0.0002,103950.0,103940.0,1.72545363]
[1763018649412,0.0002,103960.0,103950.0,0.57881893]
[1763018649613,0.0002,103960.0,103950.0,1.16638973]
[1763018649985,0.0002,103960.0,103950.0,1.19526922]
[1763018655936,0.0002,103960.0,103950.0,1.23730922]
[1763018656334,0.0002,103960.0,103950.0,0.64973842]
[1763018656566,0.0002,103960.0,103950.0,1.23730922]
[1763018660098,0.0002,103960.0,103950.0,1.38380922]
[1763018662294,1.0002,103970.0,103960.0,0.51538168]
[1763018662525,1.0002,103970.0,103960.0,1.46015662]
[1763018662741,1.0002,103970.0,103960.0,1.54544413]
[1763018662964,1.02803,103970.0,103960.0,1.26053494]
[1763018663189,1.05115,103970.0,103960.0,0.66661956]
[1763018663415,1.05115,103970.0,103960.0,0.53538168]
[1763018663637,1.05115,103970.0,103960.0,0.87216708]
[1763018664122,1.05115,103970.0,103960.0,0.87116708]
[1763018664336,1.05115,103970.0,103960.0,1.20837122]
[1763018664931,1.05115,103970.0,103960.0,1.28069557]
[1763018666005,1.05115,103970.0,103960.0,1.06073052]
[1763018666817,1.05115,103970.0,103960.0,1.28069557]
[1763018667047,1.05115,103970.0,103960.0,1.06073052]
[1763018668705,1.05115,103970.0,103960.0,0.74534673]
[1763018668920,1.50547823,103970.0,103960.0,0.20238168]
[1763018669121,1.50547823,103970.0,103950.0,0.19240019]
[1763018669330,1.46634823,103970.0,103960.0,0.01]
[1763018669731,1.48139823,103970.0,103960.0,0.01]
[1763018669933,1.50520823,103970.0,103960.0,0.01]
[1763018670137,1.50520823,103970.0,103960.0,0.20338168]
[1763018670345,1.09288,103970.0,103960.0,0.20338168]
[1763018670547,1.28524318,103970.0,103960.0,0.20338168]
[1763018670756,1.29524318,103970.0,103960.0,0.20338168]
[1763018670960,1.29524318,103970.0,103960.0,0.20438168]
[1763018671776,1.06088,103970.0,103960.0,0.64431178]
[1763018671987,1.10288,103970.0,103960.0,0.64431178]
[1763018672208,1.10288,103970.0,103960.0,0.42434673]
[1763018672393,1.10288,103970.0,103960.0,0.64431178]
[1763018673207,1.06088,103970.0,103960.0,0.64431178]
[1763018673461,1.06088,103970.0,103960.0,0.95969557]
[1763018673899,1.03707,103970.0,103960.0,0.95969557]
[1763018674112,1.0102,103970.0,103960.0,1.94259072]
[1763018674636,1.0102,103970.0,103960.0,0.62180042]
[1763018674846,1.0102,103970.0,103960.0,1.28169557]
[1763018675275,1.0102,103970.0,103960.0,1.28069557]
[1763018675475,1.0102,103970.0,103960.0,1.50066062]
[1763018676284,1.02525,103970.0,103960.0,1.28069557]
[1763018677234,1.02525,103970.0,103960.0,1.27069557]
[1763018677441,1.02525,103970.0,103960.0,1.28069557]
[1763018678259,1.04906,103970.0,103960.0,1.28069557]
[1763018679084,1.04906,103970.0,103960.0,1.30957561]
[1763018679258,1.0102,103970.0,103960.0,1.30957561]
[1763018679917,1.0102,103970.0,103960.0,1.96947076]
[1763018681900,1.0102,103970.0,103960.0,2.03785534]
[1763018685198,0.46385639,103970.0,103960.0,1.96947076]
[1763018685429,0.20861456,103970.0,103960.0,1.98817769]
[1763018689375,0.20861456,103970.0,103960.0,2.13467769]
[1763018691674,4.64446001,103990.0,103980.0,0.23576342]
[1763018691805,4.64459446,103990.0,103980.0,1.57555372]
[1763018692425,4.65964446,103990.0,103980.0,1.57555372]
[1763018693274,4.65964446,103990.0,103980.0,1.61755372]
[1763018695379,4.68345446,103990.0,103980.0,1.61755372]
[1763018695580,4.68345446,103990.0,103980.0,0.95765857]
[1763018695757,4.65964446,103990.0,103980.0,0.95765857]
[1763018695987,4.6593559,103990.0,103980.0,0.95765857]
[1763018696734,4.87549208,103990.0,103980.0,0.72331389]
[1763018696978,4.87549208,103990.0,103980.0,0.01]
[1763018697164,5.35742218,103990.0,103980.0,0.01]
[1763018697370,0.19236716,103970.0,103960.0,0.03887933]
[1763018697570,0.19236716,103970.0,103960.0,0.27196505]
[1763018697571,0.02742,103970.0,103960.0,0.27196505]
[1763018697773,0.05123,103970.0,103960.0,0.68431178]
[1763018698241,0.05123,103970.0,103960.0,0.91427683]
[1763018698445,0.05123,103970.0,103960.0,0.69431178]
[1763018701255,0.05145,103970.0,103960.0,0.95769557]
[1763018701467,0.05145,103970.0,103960.0,0.68431178]
[1763018701675,0.05145,103970.0,103960.0,0.75269636]
[1763018701890,0.05145,103970.0,103960.0,0.97266141]
[1763018702334,0.02742,103970.0,103960.0,0.97266141]
[1763018702544,0.05145,103970.0,103960.0,0.98266141]
[1763018703414,0.05145,103970.0,103960.0,0.91427683]
[1763018703624,0.02742,103970.0,103960.0,0.91427683]
[1763018703837,0.01237,103970.0,103960.0,1.64255656]
[1763018704192,0.0364,103980.0,103970.0,0.20236318]
[1763018704387,0.0364,103980.0,103970.0,0.64229328]
[1763018704608,0.02762,103980.0,103970.0,0.86225833]
[1763018704820,0.05086,103980.0,103970.0,0.87225833]
[1763018705135,0.02762,103980.0,103970.0,0.91567707]
[1763018706299,0.05086,103980.0,103970.0,0.91567707]
[1763018707336,4.6443059,103990.0,103980.0,0.23576342]
[1763018707337,4.6675459,103990.0,103980.0,0.23576342]
[1763018707553,4.6675459,103990.0,103980.0,0.68569352]
[1763018707776,4.6827959,103990.0,103980.0,0.64227478]
[1763018708581,4.6827959,103990.0,103980.0,0.64427478]
[1763018710383,4.6827959,103990.0,103980.0,0.86423983]
[1763018712458,4.6595559,103990.0,103980.0,0.86423983]
[1763018712684,4.6595559,103990.0,103980.0,1.84713498]
[1763018712907,4.6443059,103990.0,103980.0,1.85713498]
[1763018713129,4.6443059,103990.0,103980.0,1.90055372]
[1763018713835,4.6443059,103990.0,103980.0,1.89955372]
[1763018714044,4.6443059,103990.0,103980.0,1.89855372]
[1763018715317,4.6324859,103990.0,103980.0,1.89855372]
[1763018715521,4.6324859,103990.0,103980.0,1.9669383]
[1763018717941,4.6324859,103990.0,103980.0,1.98436722]
[1763018718143,4.6324859,103990.0,103980.0,2.01323787]
[1763018718560,4.6324859,103990.0,103980.0,2.04268073]
[1763018719449,3.96176502,103990.0,103980.0,1.97429615]
[1763018719665,3.96176502,103990.0,103980.0,1.94485329]
[1763018724678,3.96176502,103990.0,103980.0,2.09135329]
[1763018725148,3.96176502,103990.0,103980.0,1.65063304]
[1763018725944,3.96176502,103990.0,103980.0,1.6800759]
[1763018726362,3.96176502,103990.0,103980.0,1.76699463]
[1763018728074,3.96176502,103990.0,103980.0,1.73755177]
[1763018728394,3.96176502,103990.0,103980.0,1.80848533]
[1763018729447,3.42210054,103990.0,103980.0,1.83792819]
[1763018729711,3.20051652,103990.0,103980.0,1.88312126]
[1763018729912,3.04024224,103990.0,103980.0,2.07476817]
[1763018730438,2.49944374,103990.0,103980.0,2.07476817]
[1763018730582,2.22671739,103990.0,103980.0,2.09996126]
[1763018730809,2.22671739,103990.0,103980.0,2.50581255]
[1763018731001,2.22671739,103990.0,103980.0,2.39037255]
[1763018731608,1.72530789,103990.0,103980.0,2.41556564]
[1763018731852,1.60237772,103990.0,103980.0,2.41756564]
[1763018732824,1.60237772,103990.0,103980.0,2.09456564]
[1763018732998,1.60237772,103990.0,103980.0,2.24992818]
[1763018733233,1.60237772,103990.0,103980.0,2.27512127]
[1763018733470,1.60237772,103990.0,103980.0,2.12862127]
[1763018734356,1.13841909,103990.0,103980.0,2.12862127]
[1763018736233,35.04233994,104000.0,103990.0,0.7001449]
[1763018736444,35.04233994,104000.0,103990.0,0.8466449]
[1763018736647,35.04233994,104000.0,103990.0,1.75623776]
[1763018736781,35.04233994,104000.0,103990.0,2.04483777]
[1763018736985,35.04233994,104000.0,103990.0,2.06370057]
[1763018737187,35.04233994,104000.0,103990.0,2.07370056]
[1763018738225,35.04233994,104000.0,103990.0,2.18510055]
[1763018738420,35.04233994,104000.0,103990.0,2.20614494]
[1763018738625,35.04233994,104000.0,103990.0,2.21614493]
[1763018739840,35.04233994,104000.0,103990.0,2.18510055]
[1763018740045,35.04233994,104000.0,103990.0,2.21614493]
[1763018740046,34.55858558,104000.0,103990.0,2.21614493]
[1763018740393,34.55858558,104000.0,103990.0,2.05317774]
[1763018740819,34.55858558,104000.0,103990.0,2.08392755]
[1763018741327,34.55858558,104000.0,103990.0,2.07392756]
[1763018741529,34.55858558,104000.0,103990.0,2.08392755]
[1763018742121,34.12340065,104000.0,103990.0,2.08392755]
[1763018742546,33.77519484,104000.0,103990.0,2.24156502]
[1763018742934,33.32472378,104000.0,103990.0,2.24156502]
[1763018745693,32.88372478,104000.0,103990.0,2.29950502]
[1763018747686,32.42904021,104000.0,103990.0,2.30150502]
[1763018747902,32.42904021,104000.0,103990.0,2.30350502]